fUSD/lending_fUSD_20240322
["ID","MTS","AMOUNT","RATE_DAILY","PERIOD"]
[320084134,1711141105876,-164.24866839,0.00048822,60]
[320084135,1711141105901,-150.0,0.00048845,30]
[320084136,1711141105928,-8000.0,0.0004885,60]
[320084137,1711141105950,-150.0,0.00048853,30]
[320084138,1711141105973,-947261.39042514,0.0004886,120]
[320084140,1711141113627,-24963.96091619,0.000438,70]
[320084141,1711141113653,-500.0,0.00043835,120]
[320084142,1711141113680,-500.0,0.00043835,120]
[320084143,1711141113705,-500.0,0.00043835,120]
[320084144,1711141113730,-500.0,0.00043835,120]
[320084145,1711141113754,-500.0,0.00043835,120]
[320084146,1711141113795,-255.08738535,0.00045131,60]
[320084147,1711141113821,-676.62322973,0.00045131,61]
[320084148,1711141113846,-212.66494544,0.00045131,30]
[320084149,1711141113873,-1888.448,0.0004693,120]
[320084150,1711141113899,-1400.0,0.00048618,30]
[320084151,1711141113925,-474587.60957486,0.0004886,120]
[320084152,1711141113951,-780.41480548,0.00048867,30]
[320084153,1711141113976,-284.76107608,0.00048867,30]
[320084154,1711141114001,-355.22702406,0.00048867,30]
[320084155,1711141114026,-150.0,0.00048875,30]
[320084156,1711141114345,-1077.08942522,0.000489,120]
[320084157,1711141114373,-163181.62968229,0.000489,30]
[320084158,1711141114399,-780.41480548,0.00048916,30]
[320084159,1711141114425,-284.76107608,0.00048916,30]
[320084160,1711141114450,-355.22702406,0.00048916,30]
[320084161,1711141114475,-150.0,0.0004893,30]
[320084162,1711141114499,-8497.3555214,0.0004896,60]
[320084163,1711141114525,-150.0,0.00048963,30]
[320084164,1711141114549,-150.0,0.00048963,30]
[320084165,1711141114576,-780.41480548,0.00048966,30]
[320084166,1711141114603,-284.76107608,0.00048966,30]
[320084167,1711141114630,-355.22702406,0.00048966,30]
[320084168,1711141114655,-300167.0,0.0004898,30]
[320084169,1711141114680,-169289.55397454,0.00048998,120]
[320084170,1711141114702,-11921.93766667,0.00048998,90]
[320084171,1711141114726,-15810.96317784,0.00048998,90]
[320084172,1711141114749,-1000.0,0.00048999,120]
[320084173,1711141114774,-200000.0,0.00049,39]
[320084174,1711141114803,-500.0,0.00049,30]
[320084175,1711141114827,-721.38310877,0.00049,30]
[320084176,1711141114850,-3000.0,0.00049,120]
[320084177,1711141114874,-40076.27224624,0.00049,60]
[320084178,1711141114898,-651.0,0.00049,18]
[320084179,1711141114923,-5300.0,0.00049,29]
[320084180,1711141114952,-2428.0,0.00049,120]
[320084181,1711141114977,-169101.42,0.00049,120]
[320084182,1711141114999,-250.0,0.00049,120]
[320084183,1711141115023,-1000.0,0.00049,120]
[320084184,1711141115048,-3931.1796505,0.00049,30]
[320084185,1711141115072,-50101.0,0.00049,120]
[320084186,1711141115097,-1265.0,0.00049,20]
[320084187,1711141115121,-41624.03,0.00049,120]
[320084188,1711141115146,-20000.0,0.00049,120]
[320084189,1711141115180,-50000.0,0.00049,30]
[320084190,1711141115206,-30000.0,0.00049,120]
[320084191,1711141115230,-5629.14651629,0.00049,120]
[320084192,1711141115254,-3548.0,0.00049,120]
[320084193,1711141115277,-150.0,0.00049007,30]
[320084194,1711141115302,-780.41480548,0.00049016,30]
[320084195,1711141115326,-284.76107608,0.00049016,30]
[320084196,1711141115351,-355.22702406,0.00049016,30]
[320084197,1711141115375,-150.0,0.00049051,30]
[320084198,1711141115399,-780.41480548,0.00049066,30]
[320084199,1711141115425,-284.76107608,0.00049066,30]
[320084200,1711141115449,-355.22702406,0.00049066,30]
[320084201,1711141115476,-150.0,0.0004908,30]
[320084202,1711141115501,-150.0,0.00049084,30]
[320084203,1711141115529,-51555.98369069,0.000491,30]
[320084204,1711141115556,-780.41480548,0.00049116,30]
[320084205,1711141115582,-284.76107608,0.00049116,30]
[320084206,1711141115607,-355.22702406,0.00049116,30]
[320084207,1711141115633,-132165.24385426,0.0004912,120]
[320084208,1711141119634,-188.77332019,0.00025,30]
[320084209,1711141119994,-484.94963882,0.00045131,15]
[320084210,1711141120017,-2365.43961642,0.00045131,120]
[320084211,1711141120040,-1888.449,0.0004693,120]
[320084212,1711141120062,-1888.449,0.0004693,120]
[320084213,1711141120085,-1888.449,0.0004693,120]
[320084214,1711141120108,-1888.449,0.0004693,120]
[320084215,1711141120134,-1989407.04142457,0.0004912,120]
[320084216,1711141124215,-156.07961207,0.00045131,30]
[320084217,1711141124242,-280288.71472117,0.0004912,120]
[320084218,1711141124272,-1400.0,0.0004912,30]
[320084219,1711141124295,-150.0,0.00049139,30]
[320084220,1711141124320,-150.0,0.00049161,30]
[320084221,1711141124343,-780.41480548,0.00049166,30]
[320084222,1711141124366,-284.76107608,0.00049166,30]
[320084223,1711141124389,-355.22702406,0.00049166,30]
[320084224,1711141124413,-500.0,0.0004918,30]
[320084225,1711141124439,-184.85975,0.00049192,30]
[320084226,1711141124461,-180.553994,0.00049192,30]
[320084227,1711141124484,-164.753399,0.00049192,30]
[320084228,1711141124507,-174.493421,0.00049192,30]
[320084229,1711141124531,-185.465661,0.00049192,30]
[320084230,1711141124555,-166.898498,0.00049192,30]
[320084231,1711141124577,-179.786177,0.00049192,30]
[320084232,1711141124600,-197.25121,0.00049192,30]
[320084233,1711141124625,-183.080546,0.00049192,30]
[320084234,1711141124647,-198.869468,0.00049192,30]
[320084235,1711141124670,-155.486186,0.00049192,30]
[320084236,1711141124695,-158.78043,0.00049192,30]
[320084237,1711141124718,-172.564782,0.00049192,30]
[320084238,1711141124741,-150.0,0.00049198,30]
[320084239,1711141124766,-222.031912,0.00049198,51]
[320084240,1711141124789,-108681.61258429,0.0004921,45]
[320084241,1711141124813,-780.41480548,0.00049215,30]
[320084242,1711141124835,-284.76107608,0.00049215,30]
[320084243,1711141124858,-355.22702406,0.00049215,30]
[320084244,1711141124882,-150.0,0.00049227,30]
[320084245,1711141124904,-150.0,0.00049238,30]
[320084246,1711141124927,-780.41480548,0.00049265,30]
[320084247,1711141124952,-284.76107608,0.00049265,30]
[320084248,1711141124974,-355.22702406,0.00049265,30]
[320084249,1711141124997,-2619.488,0.00049278,50]
[320084250,1711141125020,-1000.0,0.00049299,120]
[320084251,1711141125042,-1001.0,0.000493,30]
[320084252,1711141125064,-8714.90155178,0.000493,120]
[320084253,1711141125087,-214.0,0.0004931,30]
[320084254,1711141125109,-300.0,0.00049315,30]
[320084255,1711141125131,-300.0,0.00049315,30]
[320084256,1711141125153,-271.0,0.00049315,30]
[320084257,1711141125175,-300.0,0.00049315,30]
[320084258,1711141125198,-780.41480548,0.00049315,30]
[320084259,1711141125222,-284.76107608,0.00049315,30]
[320084260,1711141125245,-215.6824241,0.00049315,30]
[320084261,1711141125270,-355.22702406,0.00049315,30]
[320084262,1711141125293,-186.75517048,0.00049315,30]
[320084263,1711141125320,-262.77148907,0.00049315,30]
[320084264,1711141125343,-299.9984597,0.00049315,30]
[320084265,1711141125365,-269.22624489,0.00049315,30]
[320084266,1711141125387,-216.65204963,0.00049315,30]
[320084267,1711141125412,-230.80073994,0.00049315,30]
[320084268,1711141125437,-170.48892257,0.00049315,30]
[320084269,1711141125461,-1255.67,0.00049315,60]
[320084270,1711141125486,-1206.33,0.00049315,120]
[320084271,1711141125511,-150.0,0.0004932,30]
[320084272,1711141125539,-10000.0,0.0004944,18]
[320084273,1711141125568,-151.032215,0.00049498,49]
[320084274,1711141125593,-158555.0858839,0.000495,120]
[320084275,1711141125620,-250.0,0.000495,120]
[320084276,1711141125644,-1704.53777297,0.000495,120]
[320084277,1711141125667,-546.0,0.00049545,60]
[320084278,1711141125694,-4453.556,0.0004967,120]
[320084279,1711141125717,-187.7239652,0.0004968,120]
[320084280,1711141125740,-300.0,0.000497,30]
[320084281,1711141125763,-141259.04504519,0.000497,60]
[320084282,1711141125786,-500.0,0.00049728,90]
[320084283,1711141125809,-15000.0,0.0004974,17]
[320084284,1711141125834,-222.031912,0.00049798,51]
[320084285,1711141125857,-333.031912,0.00049798,56]
[320084286,1711141125880,-113556.44153371,0.000498,30]
[320084287,1711141125903,-61500.88581577,0.000498,60]
[320084288,1711141125926,-367.12990488,0.000498,120]
[320084289,1711141125954,-325180.94,0.000498,120]
[320084290,1711141125977,-15000.0,0.0004989,18]
[320084291,1711141125999,-5097.91730535,0.000499,15]
[320084292,1711141126023,-3462.0,0.000499,60]
[320084293,1711141126045,-1263.9,0.000499,60]
[320084294,1711141126067,-403.0,0.00049986,120]
[320084295,1711141126090,-15158.9490675,0.0004999,30]
[320084296,1711141126114,-175.40548085,0.00049995,30]
[320084297,1711141126139,-1000.0,0.00049999,120]
[320084298,1711141126162,-20000.0,0.00049999,90]
[320084299,1711141126187,-200000.0,0.0005,50]
[320084300,1711141126211,-427.8916157,0.0005,28]
[320084301,1711141126236,-29206.92841476,0.0005,30]
[320084302,1711141126262,-25000.0,0.0005,120]
[320084303,1711141126288,-1000.0,0.0005,120]
[320084304,1711141126312,-651.0,0.0005,60]
[320084305,1711141126334,-45245.05277214,0.0005,120]
[320084306,1711141126358,-150.0,0.0005,120]
[320084307,1711141126383,-150.0,0.0005,120]
[320084308,1711141126408,-5000.0,0.0005,60]
[320084309,1711141126432,-150.0,0.0005,30]
[320084310,1711141126683,-1000.0,0.0005,120]
[320084311,1711141126709,-150.0,0.0005,27]
[320084312,1711141126732,-150.0,0.0005,30]
[320084313,1711141126757,-7247.09314062,0.0005,120]
[320084314,1711141126780,-20000.0,0.0005,120]
[320084315,1711141126804,-2500.0,0.0005,120]
[320084316,1711141126827,-770.31735792,0.0005,120]
[320084317,1711141126851,-587.0,0.0005,60]
[320084318,1711141126876,-345818.44385837,0.0005,30]
[320084319,1711141133979,-6564.80576853,0.00045,30]
[320084320,1711141134002,-255.08738535,0.00045131,60]
[320084321,1711141134025,-387.95971105,0.00045131,15]
[320084322,1711141134053,-54181.55614163,0.0005,30]
[320084323,1711141134075,-350.0,0.0005,58]
[320084324,1711141134098,-155.0,0.0005,60]
[320084325,1711141134121,-1000.0,0.0005,30]
[320084326,1711141134144,-1189040.05478708,0.0005,120]
[320084327,1711141134167,-3000.0,0.0005,80]
[320084328,1711141134190,-200478.92245752,0.0005,120]
[320084329,1711141134217,-1337.60274913,0.0005,120]
[320084330,1711141134240,-25020.92208517,0.0005,30]
[320084331,1711141134262,-2455.73179803,0.0005,30]
[320084332,1711141134285,-1183.91640393,0.0005,120]
[320084333,1711141134308,-323.20649652,0.0005,30]
[320084334,1711141134331,-780.68451794,0.0005,120]
[320084335,1711141134354,-500.0,0.0005,120]
[320084336,1711141134377,-4000.0,0.0005,30]
[320084337,1711141134401,-300.8125952,0.0005,120]
[320084339,1711141134424,-2500.0,0.0005,120]
[320084340,1711141134448,-2500.0,0.0005,120]
[320084341,1711141134470,-10000.0,0.0005,30]
[320084342,1711141134493,-1000.0,0.0005,60]
[320084343,1711141134517,-1000.0,0.0005,120]
[320084344,1711141134543,-6448.04737023,0.0005,30]
[320084345,1711141134566,-5000.0,0.0005,120]
[320084346,1711141134589,-1000.0,0.0005,120]
[320084347,1711141134612,-1674.82003588,0.0005,120]
[320084348,1711141134635,-250.0,0.0005,120]
[320084349,1711141134659,-200.0,0.0005,90]
[320084350,1711141134683,-2972.3634669,0.0005,60]
[320084351,1711141134709,-9984.89874214,0.0005,30]
[320084352,1711141134733,-1000.0,0.0005,120]
[320084353,1711141134757,-10000.0,0.0005,120]
[320084354,1711141134782,-498.23281114,0.0005,30]
[320084355,1711141134806,-30001.22208763,0.0005,30]
[320084356,1711141134832,-1482.78522515,0.0005,60]
[320084357,1711141134855,-36712.5,0.0005,120]
[320084358,1711141134878,-2500.0,0.0005,120]
[320084359,1711141134901,-2500.0,0.0005,120]
[320084360,1711141134925,-343.876,0.0005,30]
[320084361,1711141134949,-100106.0,0.0005,30]
[320084362,1711141134973,-5000.0,0.0005,120]
[320084363,1711141134997,-200.0,0.0005,27]
[320084364,1711141135020,-5018.0,0.0005,30]
[320084365,1711141135043,-1400.0,0.0005,30]
[320084366,1711141135067,-500.73927685,0.0005015,120]
[320084367,1711141135090,-500.0,0.00050276,90]
[320084368,1711141135114,-151.032216,0.00050498,50]
[320084369,1711141135137,-250.0,0.000505,120]
[320084370,1711141135164,-426.19,0.00050578,30]
[320084371,1711141135187,-1255.67,0.00050684,60]
[320084372,1711141135211,-500.0,0.00050824,90]
[320084373,1711141135233,-546.0,0.00050876,60]
[320084374,1711141135257,-3107.56376546,0.000509,120]
[320084375,1711141135280,-1000.0,0.00050999,120]
[320084376,1711141135304,-200000.0,0.00051,51]
[320084377,1711141135328,-20054.16238023,0.00051,120]
[320084378,1711141135351,-500.0,0.00051,120]
[320084379,1711141135374,-150.0,0.00051,15]
[320084380,1711141135397,-1000.0,0.00051,120]
[320084381,1711141135419,-150.0,0.00051,30]
[320084382,1711141135448,-150.0,0.00051,29]
[320084383,1711141135471,-150.0,0.00051,30]
[320084384,1711141135494,-1568.77,0.00051,120]
[320084385,1711141135518,-10098.02375087,0.00051,30]
[320084386,1711141135545,-10541.40249159,0.00051,120]
[320084387,1711141135570,-1000.0,0.00051,120]
[320084388,1711141135592,-1000.0,0.00051,120]
[320084389,1711141135618,-250.0,0.00051,120]
[320084390,1711141135644,-500.0,0.00051372,90]
[320084391,1711141135667,-359.52107967,0.000514,120]
[320084392,1711141135689,-853.0,0.00051409,28]
[320084393,1711141135717,-151.032216,0.00051498,71]
[320084394,1711141135741,-250.0,0.000515,120]
[320084395,1711141135764,-300.0,0.000517,30]
[320084396,1711141135787,-10127.88418718,0.00051788,117]
[320084397,1711141139680,-676.62322973,0.00045131,61]
[320084398,1711141139713,-36712.5,0.0005,120]
[320084399,1711141139738,-2365.43961642,0.0005,120]
[320084400,1711141139761,-1822.08461984,0.0005,15]
[320084401,1711141139785,-535.07981145,0.0005,28]
[320084402,1711141139809,-1950.11581282,0.00051788,117]
[320084403,1711141139834,-3788.0,0.000518,90]
[320084404,1711141139857,-500.0,0.0005192,90]
[320084405,1711141139881,-200000.0,0.00052,52]
[320084406,1711141139903,-1000.0,0.00052,120]
[320084407,1711141139927,-150.0,0.00052,30]
[320084408,1711141139953,-150.0,0.00052,30]
[320084409,1711141139976,-538.158,0.00052,120]
[320084410,1711141140000,-150.0,0.00052,30]
[320084411,1711141140023,-10000.0,0.00052,120]
[320084412,1711141140047,-1695.03941252,0.00052,120]
[320084413,1711141140074,-420000.0,0.00052,30]
[320084414,1711141140096,-1000.0,0.00052,120]
[320084415,1711141140118,-23822.93006774,0.00052,120]
[320084416,1711141140141,-450000.0,0.00052,30]
[320084417,1711141140165,-1000.0,0.00052,120]
[320084418,1711141140189,-1000.0,0.00052,120]
[320084419,1711141140212,-250.0,0.00052,120]
[320084420,1711141140234,-220.0,0.00052,120]
[320084421,1711141140257,-1000.0,0.00052,120]
[320084422,1711141140279,-500.0,0.00052,120]
[320084423,1711141140302,-25000.0,0.00052,120]
[320084424,1711141140324,-180.73333333,0.00052,120]
[320084425,1711141140346,-416.25555556,0.00052,120]
[320084426,1711141140368,-1255.67,0.00052054,60]
[320084427,1711141140392,-1206.33,0.00052055,120]
[320084428,1711141140415,-546.0,0.00052208,120]
[320084429,1711141140438,-5000.0,0.000523,120]
[320084430,1711141140462,-208.125835,0.00052343,60]
[320084431,1711141140486,-335.22979692,0.00052468,90]
[320084432,1711141140510,-151.032217,0.00052498,84]
[320084433,1711141140538,-1000.0,0.000525,120]
[320084434,1711141140562,-250.0,0.000525,120]
[320084435,1711141140587,-853.0,0.00052502,28]
[320084436,1711141140610,-180.73333333,0.00052548,120]
[320084437,1711141140633,-416.25555556,0.00052548,120]
[320084438,1711141140656,-10000.0,0.00052654,30]
[320084439,1711141140680,-4538.0,0.000528,90]
[320084440,1711141140960,-302.6458316,0.000529,30]
[320084441,1711141140983,-404.05943067,0.000529,30]
[320084442,1711141141006,-105072.53362031,0.000529,30]
[320084443,1711141141029,-4453.556,0.00052967,120]
[320084444,1711141141052,-208.125835,0.00052998,60]
[320084445,1711141141076,-200000.0,0.00053,53]
[320084446,1711141141098,-1000.0,0.00053,120]
[320084447,1711141141120,-150.0,0.00053,30]
[320084448,1711141141142,-150.0,0.00053,30]
[320084449,1711141141165,-10000.0,0.00053,120]
[320084450,1711141141188,-1000.0,0.00053,30]
[320084451,1711141141212,-200.0,0.00053,120]
[320084452,1711141141234,-115373.69052428,0.00053,30]
[320084453,1711141141256,-1000.0,0.00053,120]
[320084454,1711141141278,-1000.0,0.00053,120]
[320084455,1711141141301,-250.0,0.00053,120]
[320084456,1711141141323,-203.0,0.00053,120]
[320084457,1711141141348,-285.099999,0.00053,31]
[320084458,1711141141370,-1000.0,0.00053,30]
[320084459,1711141141394,-180.73333333,0.00053096,120]
[320084460,1711141141416,-416.25555556,0.00053096,120]
[320084461,1711141141439,-10422.07072742,0.000532,120]
[320084462,1711141141463,-10422.07072738,0.000532,120]
[320084463,1711141141486,-10422.07072738,0.000532,120]
[320084464,1711141141514,-10422.07072738,0.000532,120]
[320084465,1711141141538,-10422.07072738,0.000532,120]
[320084466,1711141141561,-1255.67,0.00053424,60]
[320084467,1711141141587,-151.032217,0.00053498,91]
[320084468,1711141141612,-4091.50038986,0.000535,40]
[320084469,1711141141635,-250.0,0.000535,120]
[320084470,1711141141657,-546.0,0.00053539,120]
[320084471,1711141141680,-853.0,0.00053596,28]
[320084472,1711141141705,-5000.0,0.00053642,60]
[320084473,1711141141729,-180.73333333,0.00053644,120]
[320084474,1711141141752,-416.25555556,0.00053644,120]
[320084475,1711141141776,-208.125835,0.00053652,60]
[320084476,1711141141799,-300.0,0.000537,30]
[320084477,1711141141823,-5781.60839367,0.000539,120]
[320084478,1711141141847,-200000.0,0.00054,54]
[320084479,1711141141870,-2000.0,0.00054,120]
[320084480,1711141141892,-150.0,0.00054,30]
[320084481,1711141141915,-150.0,0.00054,30]
[320084482,1711141141937,-2000.0,0.00054,120]
[320084483,1711141141962,-10000.0,0.00054,120]
[320084484,1711141141984,-59542.68431167,0.00054,30]
[320084485,1711141146202,-212.56905028,0.00045131,30]
[320084486,1711141146232,-770.41580124,0.0005,120]
[320084487,1711141146255,-1400.0,0.000528,30]
[320084488,1711141146279,-6582.95275051,0.00054,30]
[320084489,1711141146303,-41773.44701807,0.00054,120]
[320084490,1711141146327,-8914.83675245,0.00054,30]
[320084491,1711141146350,-1000.0,0.00054,120]
[320084492,1711141146374,-250.0,0.00054,120]
[320084493,1711141146397,-10013.0,0.00054,30]
[320084494,1711141146421,-1000.0,0.00054,120]
[320084495,1711141146445,-157.58853873,0.00054047,59]
[320084496,1711141146472,-180.73333333,0.00054192,120]
[320084497,1711141146496,-416.25555556,0.00054192,120]
[320084498,1711141146519,-5000.0,0.000543,120]
[320084499,1711141146542,-208.125835,0.00054306,60]
[320084500,1711141146565,-25907.36943433,0.0005444,21]
[320084501,1711141146592,-151.032217,0.00054498,98]
[320084502,1711141146617,-250.0,0.000545,120]
[320084503,1711141146641,-200.0,0.00054521,30]
[320084504,1711141146665,-200.0,0.00054521,30]
[320084505,1711141146688,-200.0,0.00054521,30]
[320084506,1711141146713,-200.0,0.00054521,30]
[320084507,1711141146736,-221.96287476,0.00054521,30]
[320084508,1711141146759,-193.68239634,0.0005459,30]
[320084509,1711141146782,-10000.0,0.00054616,30]
[320084510,1711141146805,-853.0,0.0005469,28]
[320084511,1711141146829,-1000.0,0.00054699,30]
[320084512,1711141146851,-180.73333333,0.0005474,120]
[320084513,1711141146875,-416.25555556,0.0005474,120]
[320084514,1711141146897,-1709.9,0.00054767,120]
[320084515,1711141146921,-1709.9,0.00054767,120]
[320084516,1711141146944,-1709.9,0.00054767,120]
[320084517,1711141146968,-1709.9,0.00054767,120]
[320084518,1711141146992,-1709.9,0.00054767,120]
[320084519,1711141147014,-1709.9,0.00054767,120]
[320084520,1711141147037,-1709.9,0.00054767,120]
[320084521,1711141147061,-1709.9,0.00054767,120]
[320084522,1711141147084,-1709.9,0.00054767,120]
[320084523,1711141147106,-1709.9,0.00054767,120]
[320084524,1711141147129,-1709.9,0.00054767,120]
[320084525,1711141147152,-1709.9,0.00054767,120]
[320084526,1711141147175,-1709.9,0.00054767,120]
[320084527,1711141147200,-1709.9,0.00054767,120]
[320084528,1711141147224,-1709.9,0.00054767,120]
[320084529,1711141147248,-1709.9,0.00054767,120]
[320084530,1711141147271,-1709.9,0.00054767,120]
[320084531,1711141147299,-1709.9,0.00054767,120]
[320084532,1711141147322,-1709.9,0.00054767,120]
[320084533,1711141147348,-1709.9,0.00054767,120]
[320084534,1711141147370,-1709.9,0.00054767,120]
[320084535,1711141147393,-1709.9,0.00054767,120]
[320084536,1711141147415,-1709.9,0.00054767,120]
[320084537,1711141147438,-1710.05041187,0.00054767,120]
[320084538,1711141147463,-5860.77,0.00054767,120]
[320084539,1711141147486,-5860.77,0.00054767,120]
[320084540,1711141147508,-5860.77,0.00054767,120]
[320084541,1711141147532,-5860.77,0.00054767,120]
[320084542,1711141147556,-5860.77,0.00054767,120]
[320084543,1711141147578,-5860.77,0.00054767,120]
[320084544,1711141147603,-5860.77,0.00054767,120]
[320084545,1711141147628,-5860.77,0.00054767,120]
[320084546,1711141147650,-5860.77,0.00054767,120]
[320084547,1711141147673,-5860.77,0.00054767,120]
[320084548,1711141147696,-5860.77,0.00054767,120]
[320084549,1711141147720,-5860.77,0.00054767,120]
[320084550,1711141147743,-5860.77,0.00054767,120]
[320084551,1711141147767,-5860.77,0.00054767,120]
[320084552,1711141147790,-5860.77,0.00054767,120]
[320084553,1711141147816,-5860.77,0.00054767,120]
[320084554,1711141147838,-5860.77,0.00054767,120]
[320084555,1711141147862,-5860.77,0.00054767,120]
[320084556,1711141147886,-5860.77,0.00054767,120]
[320084557,1711141147910,-5860.77,0.00054767,120]
[320084558,1711141147933,-5860.77,0.00054767,120]
[320084559,1711141147956,-5860.77,0.00054767,120]
[320084560,1711141147979,-5860.77,0.00054767,120]
[320084561,1711141148001,-5860.84551793,0.00054767,120]
[320084562,1711141148026,-500.0,0.00054794,30]
[320084563,1711141148052,-500.0,0.00054794,30]
[320084564,1711141148076,-500.0,0.00054794,120]
[320084565,1711141148099,-500.0,0.00054794,120]
[320084566,1711141148122,-500.0,0.00054794,120]
[320084567,1711141148390,-500.0,0.00054794,120]
[320084568,1711141148416,-500.0,0.00054794,120]
[320084569,1711141148439,-500.0,0.00054794,120]
[320084570,1711141148464,-500.0,0.00054794,120]
[320084571,1711141148488,-500.0,0.00054794,120]
[320084572,1711141148518,-500.0,0.00054794,120]
[320084573,1711141148543,-500.0,0.00054794,120]
[320084574,1711141148568,-500.0,0.00054794,120]
[320084575,1711141148592,-500.0,0.00054794,120]
[320084576,1711141148616,-500.0,0.00054794,120]
[320084577,1711141148640,-322.9082629,0.00054794,120]
[320084578,1711141148663,-500.0,0.00054794,120]
[320084579,1711141148685,-500.0,0.00054794,120]
[320084580,1711141148709,-500.0,0.00054794,120]
[320084581,1711141148731,-500.0,0.00054794,120]
[320084582,1711141148754,-500.0,0.00054794,120]
[320084583,1711141148777,-500.0,0.00054794,120]
[320084584,1711141148799,-500.0,0.00054794,120]
[320084585,1711141148822,-500.0,0.00054794,120]
[320084586,1711141148845,-500.0,0.00054794,120]
[320084587,1711141148868,-500.0,0.00054794,120]
[320084588,1711141148891,-500.0,0.00054794,120]
[320084589,1711141148916,-500.0,0.00054794,120]
[320084590,1711141148940,-500.0,0.00054794,120]
[320084591,1711141148965,-500.0,0.00054794,120]
[320084592,1711141148989,-375.80210082,0.00054794,120]
[320084593,1711141149012,-2998.0,0.00054794,120]
[320084594,1711141149036,-1994.1,0.00054794,120]
[320084595,1711141149060,-946.35794773,0.00054794,120]
[320084596,1711141149083,-912.88,0.00054794,120]
[320084597,1711141149106,-2998.0,0.00054794,120]
[320084598,1711141149130,-421.37073433,0.00054794,120]
[320084599,1711141149153,-2172.01,0.00054794,120]
[320084600,1711141149175,-1684.44926567,0.00054794,120]
[320084601,1711141149198,-1197.76,0.00054794,120]
[320084602,1711141149223,-2998.0,0.00054794,120]
[320084603,1711141149247,-1017.47,0.00054794,120]
[320084604,1711141149270,-640.41107831,0.00054794,120]
[320084605,1711141149293,-300.29419371,0.00054794,120]
[320084606,1711141149316,-1255.67,0.00054794,60]
[320084607,1711141149338,-366.54805906,0.00054794,30]
[320084608,1711141149361,-2620.2,0.00054794,120]
[320084609,1711141149383,-2620.2,0.00054794,120]
[320084610,1711141149408,-2620.2,0.00054794,120]
[320084611,1711141149431,-2620.2,0.00054794,120]
[320084612,1711141149455,-2620.2,0.00054794,120]
[320084613,1711141149479,-2620.2,0.00054794,120]
[320084614,1711141149502,-2620.2,0.00054794,120]
[320084615,1711141149525,-2620.2,0.00054794,120]
[320084616,1711141149553,-2620.2,0.00054794,120]
[320084617,1711141149577,-2620.2,0.00054794,120]
[320084618,1711141149600,-2620.2,0.00054794,120]
[320084619,1711141149623,-2620.2,0.00054794,120]
[320084620,1711141149646,-2620.2,0.00054794,120]
[320084621,1711141149668,-2620.2,0.00054794,120]
[320084622,1711141149691,-2620.2,0.00054794,120]
[320084623,1711141149716,-2620.2,0.00054794,120]
[320084624,1711141149739,-2620.2,0.00054794,120]
[320084625,1711141149762,-2620.2,0.00054794,120]
[320084626,1711141149784,-2620.2,0.00054794,120]
[320084627,1711141149807,-2620.2,0.00054794,120]
[320084628,1711141149830,-2620.2,0.00054794,120]
[320084629,1711141149858,-2620.2,0.00054794,120]
[320084630,1711141149880,-2620.2,0.00054794,120]
[320084631,1711141149903,-2620.22021958,0.00054794,120]
[320084632,1711141149925,-2000.0,0.00054794,120]
[320084633,1711141149947,-2000.0,0.00054794,120]
[320084634,1711141149971,-2000.0,0.00054794,120]
[320084635,1711141149994,-2000.0,0.00054794,120]